[Event "6th Uppsala Young Champions 2019"]
[Site "Uppsala"]
[Date "2019.10.30"]
[Round "9.6"]
[White "Palozza, Christian"]
[Black "Kristensen, Bjarke Hautop"]
[Result "0-1"]
[ECO "E62"]
[WhiteElo "2187"]
[BlackElo "2223"]
[Annotator "NA"]
[PlyCount "82"]
[EventDate "2019.10.25"]
[EventType "swiss"]
[EventCountry "SWE"]
[SourceTitle "playchess.com"]
[Source "ChessBase"]
[SourceQuality "1"]
[TimeControl "5400+30"]

1. d4 {[%emt 0:00:00]} Nf6 {[%emt 0:00:00]} 2. c4 {[%emt 0:00:00]} g6 {[%emt 0:00:00]} 3. Nf3 {[%emt 0:00:00]} Bg7 {[%emt 0:00:00]} 4. g3 {[%emt 0:00:00]} O-O {[%emt 0:00:03]} 5. Bg2 {[%emt 0:00:00]} d6 {[%emt 0:00:09]} 6. Nc3 {[%emt 0:00:00]} Nc6 {[%emt 0:00:22]} 7. O-O {[%emt 0:00:04]} Rb8 {[%emt 0:00:05]} 8. Bf4 {[%emt 0:00:32]} h6 {[%emt 1:33:21]} 9. h3 {[%emt 0:01:09]} g5 {[%emt 0:00:00]} 10. Be3 {[%emt 0:02:05]} g4 {[%emt 0:00:00]} 11. hxg4 {[%emt 0:00:40]} Nxg4 {[%emt 0:00:00]} 12. Qd2 {[%emt 0:01:07]} a6 {[%emt 0:00:00]} 13. d5 {[%emt 0:05:03]} Na5 {[%emt 0:00:00]} 14. b3 {[%emt 0:04:56]} Nxe3 {[%emt 0:00:00]} 15. Qxe3 {[%emt 0:01:49]} c5 {[%emt 0:00:00]} 16. Rac1 {[%emt 0:10:32]} b5 {[%emt 0:00:00]} 17. cxb5 {[%emt 0:05:40]} axb5 {[%emt 0:00:00]} 18. Nh4 {[%emt 0:00:09]} Qe8 {[%emt 0:00:00]} 19. Be4 {[%emt 0:13:39]} f5 {[%emt 0:00:00]} 20. Bb1 {[%emt 0:00:24]} Bd7 {[%emt 0:00:00]} 21. Rfd1 {[%emt 0:06:25]} Qf7 {[%emt 0:00:00]} 22. g4 {[%emt 0:19:30]} fxg4 {[%emt 0:00:00]} 23. Ng6 {[%emt 0:00:05]} Rbe8 {[%emt 0:00:00]} 24. Nxf8 {[%emt 0:04:25]} Rxf8 {[%emt 0:00:00]} 25. Ne4 {[%emt 0:00:15]} Bf5 {[%emt 0:00:00]} 26. Kg2 {[%emt 0:03:49]} Nb7 {[%emt 0:00:00]} 27. a4 {[%emt 0:02:10]} bxa4 {[%emt 0:00:00]} 28. bxa4 {[%emt 0:00:06]} Bb2 {[%emt 0:00:00]} 29. Qxh6 {[%emt 0:01:51]} Bxc1 {[%emt 0:00:00]} 30. Rxc1 {[%emt 0:00:20]} Bxe4+ {[%emt 0:00:00]} 31. Bxe4 {[%emt 0:00:01]} Qxf2+ {[%emt 0:00:00]} 32. Kh1 {[%emt 0:00:01]} Rf7 {[%emt 0:00:00]} 33. Qg6+ {[%emt 0:19:43]} Kf8 {[%emt 0:00:00]} 34. Qxg4 {[%emt 0:00:00]} Rf4 {[%emt 0:00:00]} 35. Qc8+ {[%emt 0:00:00]} Nd8 {[%emt 0:00:00]} 36. Qxd8+ {[%emt 0:00:00]} Kf7 {[%emt 0:00:03]} 37. Bg6+ {[%emt 0:00:00]} Kxg6 {[%emt 0:01:52]} 38. Qg8+ {[%emt 0:00:00]} Kh6 {[%emt 0:00:06]} 39. Qe6+ {[%emt 0:00:00]} Kh5 {[%emt 0:01:03]} 40. Rc3 {[%emt 0:02:34]} Qf1+ {[%emt 0:00:27]} 41. Kh2 {[%emt 0:00:06]} Rf2+ {[%emt 0:00:17]} 0-1

[Event "6th Uppsala Young Champions 2019"]
[Site "Uppsala"]
[Date "2019.10.30"]
[Round "9.7"]
[White "Papunidi, Matvey"]
[Black "Narva, David"]
[Result "1-0"]
[ECO "A21"]
[WhiteElo "2083"]
[BlackElo "1979"]
[Annotator "NA"]
[PlyCount "37"]
[EventDate "2019.10.25"]
[EventType "swiss"]
[EventCountry "SWE"]
[SourceTitle "playchess.com"]
[Source "ChessBase"]
[SourceQuality "1"]
[TimeControl "5400+30"]

1. c4 {[%emt 0:00:00]} e5 {[%emt 0:00:00]} 2. Nc3 {[%emt 0:00:00]} d6 {[%emt 0:00:00]} 3. g3 {[%emt 0:00:00]} f5 {[%emt 0:00:00]} 4. Bg2 {[%emt 0:00:00]} Nf6 {[%emt 0:00:00]} 5. e3 {[%emt 0:00:09]} Be7 {[%emt 0:00:06]} 6. Nge2 {[%emt 0:00:28]} c6 {[%emt 0:00:35]} 7. O-O {[%emt 0:00:42]} O-O {[%emt 0:00:13]} 8. d3 {[%emt 1:32:41]} Na6 {[%emt 0:02:18]} 9. Rb1 {[%emt 0:00:00]} d5 {[%emt 0:02:15]} 10. cxd5 {[%emt 0:00:00]} cxd5 {[%emt 0:00:08]} 11. Qb3 {[%emt 0:00:00]} Nc5 {[%emt 0:05:38]} 12. Qc2 {[%emt 0:00:00]} Na6 {[%emt 0:04:23]} 13. Qb3 {[%emt 0:00:00]} Nc5 {[%emt 0:10:33]} 14. Qc2 {[%emt 0:00:00]} Na6 {[%emt 0:00:18]} 15. a3 {[%emt 0:00:00]} Be6 {[%emt 0:00:28]} 16. b4 {[%emt 0:00:00]} Rc8 {[%emt 0:07:26]} 17. Qd2 {[%emt 0:00:00]} Qd7 {[%emt 0:02:07]} 18. Bb2 {[%emt 0:00:00]} Ne8 {[%emt 0:03:20]} 19. f4 {[%emt 0:05:30]} 1-0

[Event "6th Uppsala Young Champions 2019"]
[Site "Uppsala"]
[Date "2019.10.30"]
[Round "9.8"]
[White "Carlsson, Ludvig"]
[Black "Trost, Edvin"]
[Result "1-0"]
[ECO "D37"]
[WhiteElo "2066"]
[BlackElo "1982"]
[Annotator "NA"]
[PlyCount "79"]
[EventDate "2019.10.25"]
[EventType "swiss"]
[EventCountry "SWE"]
[SourceTitle "playchess.com"]
[Source "ChessBase"]
[SourceQuality "1"]
[TimeControl "5400+30"]

1. Nf3 Nf6 {[%emt 0:01:42]} 2. c4 {[%emt 0:00:54]} e6 {[%emt 0:01:57]} 3. d4 {[%emt 0:00:41]} d5 {[%emt 0:00:16]} 4. Nc3 {[%emt 0:00:46]} a6 {[%emt 0:00:06]} 5. cxd5 {[%emt 0:00:59]} exd5 {[%emt 0:00:01]} 6. Bg5 {[%emt 0:00:57]} Be6 {[%emt 0:00:05]} 7. e3 {[%emt 0:00:28]} Nbd7 {[%emt 0:02:22]} 8. h3 {[%emt 0:03:37]} Bd6 {[%emt 0:00:44]} 9. Bd3 {[%emt 0:04:14]} c6 {[%emt 0:00:26]} 10. Bf4 {[%emt 0:05:29]} Qc7 {[%emt 0:00:11]} 11. Qd2 {[%emt 0:02:20]} O-O {[%emt 0:04:23]} 12. O-O {[%emt 0:01:27]} Rfe8 {[%emt 0:00:56]} 13. a4 {[%emt 0:07:40]} h6 {[%emt 0:03:43]} 14. a5 {[%emt 0:01:48]} Bxf4 {[%emt 0:03:51]} 15. exf4 {[%emt 0:00:09]} Ne4 {[%emt 0:00:04]} 16. Nxe4 {[%emt 0:05:40]} dxe4 {[%emt 0:01:06]} 17. Bxe4 {[%emt 0:00:09]} Bxh3 {[%emt 0:00:31]} 18. Ne5 {[%emt 0:01:20]} Be6 {[%emt 0:00:40]} 19. Ra3 {[%emt 0:02:38]} f5 {[%emt 0:04:43]} 20. Bb1 {[%emt 0:03:22]} Nxe5 {[%emt 0:00:06]} 21. dxe5 {[%emt 0:06:02]} Rad8 {[%emt 0:01:24]} 22. Qe3 {[%emt 0:06:31]} Qf7 {[%emt 0:01:01]} 23. Rc1 {[%emt 0:02:10]} Rd7 {[%emt 0:02:43]} 24. Rd3 {[%emt 0:03:06]} Red8 {[%emt 0:01:23]} 25. Rcd1 {[%emt 0:00:46]} Bc4 {[%emt 0:04:04]} 26. Rd6 {[%emt 0:01:01]} Bd5 {[%emt 0:01:33]} 27. R1xd5 {[%emt 0:00:29]} cxd5 {[%emt 0:01:19]} 28. e6 {[%emt 0:00:06]} Rxd6 {[%emt 0:00:07]} 29. exf7+ {[%emt 0:00:07]} Kxf7 {[%emt 0:00:04]} 30. Bxf5 {[%emt 0:02:04]} d4 {[%emt 0:00:12]} 31. Qb3+ {[%emt 0:00:06]} Kf6 {[%emt 0:00:20]} 32. Bd3 {[%emt 0:00:33]} Rb8 {[%emt 0:01:11]} 33. Qb4 {[%emt 0:00:52]} Ke7 {[%emt 0:00:08]} 34. Bxa6 {[%emt 0:01:08]} Kd7 {[%emt 0:04:06]} 35. Bb5+ {[%emt 0:00:30]} Ke6 {[%emt 0:00:34]} 36. a6 {[%emt 0:02:39]} Ke7 {[%emt 0:00:39]} 37. Bd3 {[%emt 0:00:28]} b5 {[%emt 0:00:51]} 38. Be4 {[%emt 0:00:22]} d3 {[%emt 0:00:26]} 39. a7 {[%emt 0:00:07]} d2 {[%emt 0:00:12]} 40. Qxd6+ {[%emt 0:00:07]} 1-0

[Event "6th Uppsala Young Champions 2019"]
[Site "Uppsala"]
[Date "2019.10.30"]
[Round "9.9"]
[White "Vitenberg, Noam Aviv"]
[Black "Rasti, Arvin"]
[Result "0-1"]
[ECO "A67"]
[WhiteElo "2223"]
[BlackElo "2179"]
[Annotator "NA"]
[PlyCount "114"]
[EventDate "2019.10.25"]
[EventType "swiss"]
[EventCountry "SWE"]
[SourceTitle "playchess.com"]
[Source "ChessBase"]
[SourceQuality "1"]
[TimeControl "5400+30"]

1. d4 {[%emt 0:09:16]} Nf6 {[%emt 0:00:00]} 2. c4 {[%emt 0:00:05]} c5 {[%emt 0:00:00]} 3. d5 {[%emt 0:00:18]} e6 {[%emt 0:00:07]} 4. Nc3 {[%emt 0:00:09]} exd5 {[%emt 0:00:06]} 5. cxd5 {[%emt 0:00:09]} d6 {[%emt 0:00:05]} 6. e4 {[%emt 0:00:25]} g6 {[%emt 0:00:08]} 7. f4 {[%emt 0:00:08]} Bg7 {[%emt 0:00:06]} 8. Bb5+ {[%emt 0:00:15]} Nfd7 {[%emt 0:00:06]} 9. Be2 {[%emt 0:00:16]} O-O {[%emt 0:00:34]} 10. Nf3 {[%emt 0:00:20]} Na6 {[%emt 0:03:11]} 11. O-O {[%emt 0:00:20]} Rb8 {[%emt 0:01:17]} 12. Nd2 {[%emt 0:07:29]} Nf6 {[%emt 0:07:43]} 13. a4 {[%emt 0:01:49]} Re8 {[%emt 0:01:03]} 14. Bf3 {[%emt 0:01:00]} h5 {[%emt 0:06:00]} 15. h3 {[%emt 0:02:43]} Ng4 {[%emt 0:04:39]} 16. Nb3 {[%emt 0:08:19]} Nh6 {[%emt 0:03:25]} 17. f5 {[%emt 0:05:29]} Nb4 {[%emt 0:03:55]} 18. fxg6 {[%emt 0:12:16]} fxg6 {[%emt 0:00:01]} 19. Bxh5 {[%emt 0:02:16]} gxh5 {[%emt 0:02:53]} 20. Qxh5 {[%emt 0:01:56]} Re5 {[%emt 0:01:02]} 21. Qg6 {[%emt 0:02:29]} Qh4 {[%emt 0:08:20]} 22. Bf4 {[%emt 0:10:31]} Nd3 {[%emt 0:01:13]} 23. Bg3 {[%emt 0:09:38]} Qe7 {[%emt 0:55:36]} 24. Rf3 {[%emt 0:12:19]} Nf7 {[%emt 0:00:00]} 25. Bh4 {[%emt 0:03:21]} Qxh4 {[%emt 0:00:00]} 26. Qxf7+ {[%emt 0:01:15]} Kh8 {[%emt 0:00:00]} 27. Qc7 {[%emt 0:04:33]} Ra8 {[%emt 0:00:00]} 28. Rxd3 {[%emt 0:00:20]} Re7 {[%emt 0:00:00]} 29. Qd8+ {[%emt 0:03:04]} Kh7 {[%emt 0:00:00]} 30. Rf3 {[%emt 0:01:46]} Bg4 {[%emt 0:00:00]} 31. hxg4 {[%emt 0:00:44]} Rxd8 {[%emt 0:00:00]} 32. Rh3 {[%emt 0:00:08]} Qxh3 {[%emt 0:00:00]} 33. gxh3 {[%emt 0:00:05]} Bxc3 {[%emt 0:00:00]} 34. bxc3 {[%emt 0:00:16]} Rxe4 {[%emt 0:00:00]} 35. Na5 {[%emt 0:00:45]} Rd7 {[%emt 0:00:00]} 36. Kf2 {[%emt 0:00:17]} Rf7+ {[%emt 0:00:00]} 37. Kg1 {[%emt 0:00:50]} b6 {[%emt 0:00:00]} 38. Nc6 {[%emt 0:00:19]} Re3 {[%emt 0:00:00]} 39. Nd8 {[%emt 0:00:28]} Rg3+ {[%emt 0:00:00]} 40. Kh2 {[%emt 0:00:16]} Rff3 {[%emt 0:00:00]} 41. Ne6 {[%emt 0:01:07]} Rxh3+ {[%emt 0:00:00]} 42. Kg2 {[%emt 0:00:08]} Rfg3+ {[%emt 0:00:00]} 43. Kf2 {[%emt 0:00:21]} Rxg4 {[%emt 0:00:00]} 44. a5 {[%emt 0:00:27]} b5 {[%emt 0:00:00]} 45. Rb1 {[%emt 0:01:13]} Rxc3 {[%emt 0:00:00]} 46. Rb2 {[%emt 0:01:22]} b4 47. Rxb4 {[%emt 0:00:00]} Re4 {[%emt 0:12:00]} 48. Rb5 Rb4 {[%emt 0:00:00]} 49. Nc7 {[%emt 0:00:31]} a6 {[%emt 0:00:00]} 50. Rb6 {[%emt 0:00:24]} Rxb6 {[%emt 0:00:00]} 51. axb6 {[%emt 0:00:02]} Rb3 {[%emt 0:00:00]} 52. Nxa6 {[%emt 0:00:17]} Rxb6 {[%emt 0:00:00]} 53. Nc7 {[%emt 0:00:07]} Kg6 {[%emt 0:00:00]} 54. Ke3 {[%emt 0:00:05]} Kf5 {[%emt 0:00:00]} 55. Kd3 {[%emt 0:00:25]} Ke5 {[%emt 0:00:00]} 56. Kc4 {[%emt 0:00:14]} Rb4+ {[%emt 0:00:00]} 57. Kc3 {[%emt 0:00:04]} Rd4 {[%emt 0:00:00]} 0-1

[Event "6th Uppsala Young Champions 2019"]
[Site "Uppsala"]
[Date "2019.10.30"]
[Round "9.10"]
[White "Apol, Luitjen Akselsson"]
[Black "Soderstrom, Adrian"]
[Result "0-1"]
[ECO "C84"]
[WhiteElo "2129"]
[BlackElo "1960"]
[Annotator "NA"]
[PlyCount "60"]
[EventDate "2019.10.25"]
[EventType "swiss"]
[EventCountry "SWE"]
[SourceTitle "playchess.com"]
[Source "ChessBase"]
[SourceQuality "1"]
[TimeControl "5400+30"]

1. e4 {[%emt 0:00:00]} e5 {[%emt 0:00:00]} 2. Nf3 {[%emt 0:00:10]} Nc6 {[%emt 0:00:00]} 3. Bb5 {[%emt 0:00:36]} a6 {[%emt 0:00:00]} 4. Ba4 {[%emt 0:00:23]} Nf6 {[%emt 0:00:21]} 5. d3 {[%emt 0:00:53]} d6 {[%emt 0:00:13]} 6. c3 {[%emt 0:00:11]} Be7 {[%emt 0:00:18]} 7. O-O {[%emt 0:00:32]} O-O {[%emt 0:00:11]} 8. Re1 {[%emt 0:00:39]} Nd7 {[%emt 0:00:09]} 9. Nbd2 {[%emt 0:01:09]} Nb6 {[%emt 0:00:29]} 10. Bc2 {[%emt 0:01:25]} f5 {[%emt 0:00:38]} 11. exf5 {[%emt 0:07:16]} Bxf5 {[%emt 0:00:11]} 12. Nf1 {[%emt 0:00:07]} Kh8 {[%emt 0:04:31]} 13. Ng3 {[%emt 0:00:20]} Bg4 {[%emt 0:00:05]} 14. d4 {[%emt 0:15:50]} Bxf3 {[%emt 0:03:27]} 15. gxf3 {[%emt 0:00:02]} exd4 {[%emt 0:02:39]} 16. Qd3 {[%emt 0:25:52]} g6 {[%emt 0:00:23]} 17. f4 {[%emt 0:04:02]} dxc3 {[%emt 0:04:00]} 18. f5 {[%emt 0:03:36]} Ne5 {[%emt 0:04:07]} 19. Qe4 {[%emt 0:04:52]} Bf6 {[%emt 0:01:10]} 20. fxg6 {[%emt 0:10:29]} Nxg6 {[%emt 0:02:35]} 21. Bh6 {[%emt 0:00:27]} cxb2 {[%emt 0:02:01]} 22. Rad1 {[%emt 0:00:06]} Rf7 {[%emt 0:14:58]} 23. Nh5 {[%emt 0:13:45]} Be5 {[%emt 0:03:38]} 24. f4 {[%emt 0:03:09]} Qh4 {[%emt 0:02:51]} 25. fxe5 {[%emt 0:00:28]} Qxh5 {[%emt 0:00:22]} 26. e6 {[%emt 0:01:13]} Re7 {[%emt 0:06:08]} 27. Be3 {[%emt 0:00:06]} Rg8 {[%emt 0:00:53]} 28. Kh1 {[%emt 0:00:23]} Rxe6 {[%emt 0:02:48]} 29. Bd4+ {[%emt 0:00:49]} Ne5 {[%emt 0:00:16]} 30. Rg1 {[%emt 0:02:25]} Qxh2+ {[%emt 0:00:10]} 0-1

[Event "6th Uppsala Young Champions 2019"]
[Site "Uppsala"]
[Date "2019.10.30"]
[Round "9.11"]
[White "Muntean, Victor"]
[Black "Wernberg, Hugo"]
[Result "0-1"]
[ECO "B27"]
[WhiteElo "2020"]
[BlackElo "2006"]
[Annotator "NA"]
[PlyCount "50"]
[EventDate "2019.10.25"]
[EventType "swiss"]
[EventCountry "SWE"]
[SourceTitle "playchess.com"]
[Source "ChessBase"]
[SourceQuality "1"]
[TimeControl "5400+30"]

1. e4 {[%emt 1:30:30]} c5 {[%emt 1:30:30]} 2. c3 {[%emt 0:00:30]} g6 {[%emt 0:00:30]} 3. Nf3 {[%emt 0:00:30]} Bg7 {[%emt 0:00:30]} 4. d4 {[%emt 0:00:30]} cxd4 {[%emt 0:00:30]} 5. cxd4 {[%emt 0:00:30]} d5 {[%emt 0:00:30]} 6. e5 {[%emt 0:00:30]} Nh6 {[%emt 0:00:30]} 7. Nc3 {[%emt 0:00:30]} O-O {[%emt 0:00:30]} 8. Qb3 {[%emt 0:00:30]} Nc6 {[%emt 0:00:30]} 9. Qxd5 {[%emt 0:00:30]} Bg4 {[%emt 0:00:30]} 10. Be3 {[%emt 0:00:30]} Qxd5 {[%emt 0:00:30]} 11. Nxd5 {[%emt 0:00:30]} Rad8 {[%emt 0:00:30]} 12. Nc3 {[%emt 0:00:30]} Bxf3 {[%emt 0:00:30]} 13. gxf3 {[%emt 0:00:30]} Nxd4 {[%emt 0:00:30]} 14. O-O-O {[%emt 0:00:30]} Nxf3 {[%emt 0:00:30]} 15. e6 {[%emt 0:00:30]} Rxd1+ {[%emt 0:00:30]} 16. Kxd1 {[%emt 0:00:30]} fxe6 {[%emt 0:00:30]} 17. Bc4 {[%emt 0:00:30]} Nd4 {[%emt 0:00:30]} 18. Ne2 {[%emt 0:00:30]} Nhf5 {[%emt 0:00:30]} 19. Nf4 {[%emt 0:00:30]} Rd8 {[%emt 0:00:30]} 20. Ke1 {[%emt 0:00:30]} Rc8 {[%emt 0:00:30]} 21. b3 {[%emt 0:00:30]} b5 {[%emt 0:00:30]} 22. Be2 {[%emt 0:00:30]} Nc2+ {[%emt 0:00:30]} 23. Kf1 {[%emt 0:00:30]} Ncxe3+ {[%emt 0:00:30]} 24. fxe3 {[%emt 0:00:30]} Rc1+ {[%emt 0:00:30]} 25. Kg2 {[%emt 0:00:30]} Nxe3+ {[%emt 0:00:30]} 0-1

[Event "6th Uppsala Young Champions 2019"]
[Site "Uppsala"]
[Date "2019.10.30"]
[Round "9.12"]
[White "Fjallheim, Leif Reinert"]
[Black "Falkevall, Axel"]
[Result "1/2-1/2"]
[ECO "D02"]
[WhiteElo "1985"]
[BlackElo "2036"]
[Annotator "NA"]
[PlyCount "62"]
[EventDate "2019.10.25"]
[EventType "swiss"]
[EventCountry "SWE"]
[SourceTitle "playchess.com"]
[Source "ChessBase"]
[SourceQuality "1"]
[TimeControl "5400+30"]

1. d4 {[%emt 0:00:00]} Nf6 {[%emt 0:00:00]} 2. Bf4 {[%emt 0:00:00]} d5 {[%emt 0:00:00]} 3. e3 {[%emt 0:00:58]} c5 {[%emt 0:00:00]} 4. Nd2 {[%emt 0:00:42]} Nc6 {[%emt 0:00:03]} 5. Ngf3 {[%emt 0:00:53]} e6 {[%emt 0:00:04]} 6. c3 {[%emt 0:00:23]} Bd6 {[%emt 0:00:07]} 7. Bg3 {[%emt 0:00:06]} O-O {[%emt 0:00:25]} 8. Bd3 {[%emt 0:00:20]} b6 {[%emt 0:00:09]} 9. e4 {[%emt 0:01:09]} Be7 {[%emt 0:00:37]} 10. dxc5 {[%emt 0:07:26]} bxc5 {[%emt 0:00:38]} 11. O-O {[%emt 0:01:36]} Bb7 {[%emt 0:02:34]} 12. Re1 {[%emt 0:01:54]} Re8 {[%emt 0:03:17]} 13. exd5 {[%emt 0:00:57]} exd5 {[%emt 0:00:33]} 14. Qc2 {[%emt 0:00:49]} Qb6 {[%emt 0:05:05]} 15. Ne5 {[%emt 0:01:43]} Rad8 {[%emt 0:04:07]} 16. Ndf3 {[%emt 0:02:37]} Nxe5 {[%emt 0:05:14]} 17. Bxe5 {[%emt 0:04:28]} h6 {[%emt 0:03:08]} 18. Qb3 {[%emt 0:03:54]} c4 {[%emt 0:09:58]} 19. Qxb6 {[%emt 0:00:49]} axb6 {[%emt 0:00:01]} 20. Bc2 {[%emt 0:01:18]} Nd7 {[%emt 0:03:32]} 21. Ba4 {[%emt 0:03:31]} Bc5 {[%emt 0:03:18]} 22. Bc7 {[%emt 0:04:09]} Rxe1+ {[%emt 0:00:20]} 23. Rxe1 {[%emt 0:00:06]} Rc8 {[%emt 0:00:54]} 24. Bg3 {[%emt 0:02:37]} Nf6 {[%emt 0:02:38]} 25. Nd4 {[%emt 0:04:16]} Ne4 {[%emt 0:04:37]} 26. f3 {[%emt 0:06:48]} Nxg3 {[%emt 0:05:05]} 27. hxg3 {[%emt 0:00:46]} Bc6 {[%emt 0:01:57]} 28. Bxc6 {[%emt 0:03:52]} Rxc6 {[%emt 0:01:56]} 29. Re8+ {[%emt 0:00:25]} Kh7 {[%emt 0:00:07]} 30. Kf1 {[%emt 0:02:24]} Bxd4 {[%emt 0:01:45]} 31. cxd4 {[%emt 0:00:07]} c3 {[%emt 0:01:04]} 1/2-1/2

[Event "6th Uppsala Young Champions 2019"]
[Site "Uppsala"]
[Date "2019.10.30"]
[Round "9.13"]
[White "Vainerchuk, Barys"]
[Black "Nguyen, Gabriel"]
[Result "1-0"]
[ECO "B41"]
[WhiteElo "2136"]
[BlackElo "2071"]
[Annotator "NA"]
[PlyCount "43"]
[EventDate "2019.10.25"]
[EventType "swiss"]
[EventCountry "SWE"]
[SourceTitle "playchess.com"]
[Source "ChessBase"]
[SourceQuality "1"]
[TimeControl "5400+30"]

1. e4 {[%emt 0:00:00]} c5 {[%emt 0:00:00]} 2. Nf3 {[%emt 0:00:00]} e6 {[%emt 0:00:00]} 3. d4 {[%emt 0:00:00]} cxd4 {[%emt 0:00:00]} 4. Nxd4 {[%emt 0:00:00]} a6 {[%emt 0:00:00]} 5. c4 {[%emt 0:00:00]} Nf6 {[%emt 0:00:00]} 6. Nc3 {[%emt 0:00:00]} Qc7 {[%emt 0:00:00]} 7. Be3 {[%emt 0:00:04]} Bb4 {[%emt 0:00:04]} 8. Qc2 {[%emt 0:09:25]} Bxc3+ {[%emt 0:06:15]} 9. Qxc3 {[%emt 0:01:00]} Nxe4 {[%emt 0:00:54]} 10. Nb5 {[%emt 0:00:08]} axb5 {[%emt 0:00:46]} 11. Qxg7 {[%emt 0:00:52]} Qa5+ {[%emt 0:06:44]} 12. Ke2 {[%emt 0:01:38]} Rf8 {[%emt 0:00:37]} 13. Bh6 {[%emt 0:00:06]} Qb4 {[%emt 0:00:57]} 14. f3 {[%emt 0:08:34]} Qxc4+ {[%emt 0:05:20]} 15. Kd1 {[%emt 0:05:06]} Nf2+ {[%emt 0:27:27]} 16. Ke1 {[%emt 0:01:02]} Qc5 {[%emt 0:00:30]} 17. Rc1 {[%emt 0:00:22]} Qb4+ {[%emt 0:02:23]} 18. Bd2 {[%emt 0:00:17]} Nd3+ {[%emt 0:02:38]} 19. Bxd3 {[%emt 0:00:04]} Qh4+ {[%emt 0:00:09]} 20. g3 {[%emt 0:00:08]} Qd8 {[%emt 0:00:28]} 21. Bh6 {[%emt 0:00:28]} Ke7 {[%emt 0:02:40]} 22. Bg5+ {[%emt 0:00:29]} 1-0

[Event "6th Uppsala Young Champions 2019"]
[Site "Uppsala"]
[Date "2019.10.30"]
[Round "9.14"]
[White "Grahn, Vidar"]
[Black "Mitra, Akash"]
[Result "1-0"]
[ECO "B78"]
[WhiteElo "1926"]
[BlackElo "1936"]
[Annotator "NA"]
[PlyCount "107"]
[EventDate "2019.10.25"]
[EventType "swiss"]
[EventCountry "SWE"]
[SourceTitle "playchess.com"]
[Source "ChessBase"]
[SourceQuality "1"]
[TimeControl "5400+30"]

1. e4 {[%emt 1:30:30]} c5 {[%emt 1:30:30]} 2. Nf3 {[%emt 0:00:30]} d6 {[%emt 0:00:30]} 3. d4 {[%emt 0:00:30]} cxd4 {[%emt 0:00:30]} 4. Nxd4 {[%emt 0:00:30]} Nf6 {[%emt 0:00:30]} 5. Nc3 {[%emt 0:00:30]} g6 {[%emt 0:00:30]} 6. Be3 {[%emt 0:00:30]} Bg7 {[%emt 0:00:30]} 7. f3 {[%emt 0:00:30]} O-O {[%emt 0:00:30]} 8. Qd2 {[%emt 0:00:30]} Nc6 {[%emt 0:00:30]} 9. Bc4 {[%emt 0:00:30]} Bd7 {[%emt 0:00:30]} 10. O-O-O {[%emt 0:00:30]} Qa5 {[%emt 0:00:30]} 11. g4 {[%emt 0:00:30]} Rfc8 {[%emt 0:00:30]} 12. Bb3 {[%emt 0:00:30]} Ne5 {[%emt 0:00:30]} 13. Bh6 {[%emt 0:00:30]} Bxh6 {[%emt 0:00:30]} 14. Qxh6 {[%emt 0:00:30]} Rxc3 {[%emt 0:00:30]} 15. bxc3 {[%emt 0:00:30]} Qxc3 {[%emt 0:00:30]} 16. Kb1 {[%emt 0:00:30]} a5 {[%emt 0:00:30]} 17. a4 {[%emt 0:00:30]} b5 {[%emt 0:00:30]} 18. axb5 {[%emt 0:00:30]} a4 {[%emt 0:00:30]} 19. Ba2 {[%emt 0:00:30]} a3 {[%emt 0:00:30]} 20. Qc1 {[%emt 0:00:30]} Ra4 {[%emt 0:00:30]} 21. f4 {[%emt 0:00:30]} Rxd4 {[%emt 0:00:30]} 22. Rxd4 {[%emt 0:00:30]} Qxd4 {[%emt 0:00:30]} 23. fxe5 {[%emt 0:00:30]} Qb4+ {[%emt 0:00:30]} 24. Bb3 {[%emt 0:00:30]} Nxe4 {[%emt 0:00:30]} 25. exd6 {[%emt 0:00:30]} Qxd6 {[%emt 0:00:30]} 26. Re1 {[%emt 0:00:30]} Qe5 {[%emt 0:00:30]} 27. b6 {[%emt 0:00:30]} Bc6 {[%emt 0:00:30]} 28. Rxe4 {[%emt 0:00:30]} Qxe4 {[%emt 0:00:30]} 29. Qxa3 {[%emt 0:00:30]} e6 {[%emt 0:00:30]} 30. Qd6 {[%emt 0:00:30]} Qf3 {[%emt 0:00:30]} 31. g5 {[%emt 0:00:30]} Be4 {[%emt 0:00:30]} 32. Kb2 {[%emt 0:00:30]} Kg7 {[%emt 0:00:30]} 33. Qd4+ {[%emt 0:00:30]} Kg8 {[%emt 0:00:30]} 34. Qc3 {[%emt 0:00:30]} Qg2 {[%emt 0:00:30]} 35. Qg3 {[%emt 0:00:30]} Qh1 {[%emt 0:00:30]} 36. Bc4 {[%emt 0:00:30]} Bb7 {[%emt 0:00:30]} 37. Qd6 {[%emt 0:00:30]} Qe4 {[%emt 0:00:30]} 38. Kb3 {[%emt 0:00:30]} Qh1 {[%emt 0:00:30]} 39. Qd8+ {[%emt 0:00:30]} Kg7 {[%emt 0:00:30]} 40. Qf6+ {[%emt 0:00:30]} Kg8 {[%emt 0:00:30]} 41. Qe5 {[%emt 0:00:30]} Qc6 {[%emt 0:00:30]} 42. Qa5 {[%emt 0:00:30]} Qh1 {[%emt 0:00:30]} 43. Kb2 {[%emt 0:00:30]} Qxh2 {[%emt 0:00:30]} 44. Ba6 {[%emt 0:00:30]} Bxa6 {[%emt 0:00:30]} 45. Qxa6 {[%emt 0:00:30]} Qe5+ {[%emt 0:00:30]} 46. c3 {[%emt 0:00:30]} Qd5 {[%emt 0:00:30]} 47. b7 {[%emt 0:00:30]} Qd2+ {[%emt 0:00:30]} 48. Kb3 {[%emt 0:00:30]} Qd1+ {[%emt 0:00:30]} 49. Kb4 {[%emt 0:00:30]} Qb1+ {[%emt 0:00:30]} 50. Ka5 {[%emt 0:00:30]} Qa1+ {[%emt 0:00:30]} 51. Kb6 {[%emt 0:00:30]} Qg1+ {[%emt 0:00:30]} 52. Kc7 {[%emt 0:00:30]} Qg3+ {[%emt 0:00:30]} 53. Kd7 {[%emt 0:00:30]} Kg7 {[%emt 0:00:30]} 54. Qd6 {[%emt 0:00:30]} 1-0

[Event "6th Uppsala Young Champions 2019"]
[Site "Uppsala"]
[Date "2019.10.30"]
[Round "9.15"]
[White "Dingertz, Erik"]
[Black "Ostlund, Joar"]
[Result "*"]
[ECO "A13"]
[WhiteElo "1908"]
[BlackElo "1955"]
[Annotator "NA"]
[PlyCount "36"]
[EventDate "2019.10.25"]
[EventType "swiss"]
[EventCountry "SWE"]
[SourceTitle "playchess.com"]
[Source "ChessBase"]
[SourceQuality "1"]
[TimeControl "5400+30"]

1. Nf3 {[%emt 1:30:30]} d5 {[%emt 1:30:30]} 2. c4 {[%emt 0:00:30]} e6 {[%emt 0:00:30]} 3. g3 {[%emt 0:00:30]} Nf6 {[%emt 0:00:30]} 4. Bg2 {[%emt 0:00:30]} c5 {[%emt 0:00:30]} 5. O-O {[%emt 0:00:30]} Nc6 {[%emt 0:00:30]} 6. b3 {[%emt 0:00:30]} Bd6 {[%emt 0:00:30]} 7. Bb2 {[%emt 0:00:30]} Bd7 {[%emt 0:00:30]} 8. e3 {[%emt 0:00:30]} O-O {[%emt 0:00:30]} 9. Nc3 {[%emt 0:00:30]} Rc8 {[%emt 0:00:30]} 10. Rc1 {[%emt 0:00:30]} Re8 {[%emt 0:00:30]} 11. d4 {[%emt 0:00:30]} cxd4 {[%emt 0:00:30]} 12. exd4 {[%emt 0:00:30]} b6 {[%emt 0:00:30]} 13. Re1 {[%emt 0:00:30]} dxc4 {[%emt 0:00:30]} 14. bxc4 {[%emt 0:00:30]} Na5 {[%emt 0:00:30]} 15. Nb5 {[%emt 0:00:30]} Nxc4 {[%emt 0:00:30]} 16. Rxc4 {[%emt 0:00:30]} Bxb5 {[%emt 0:00:30]} 17. Rc5 {[%emt 0:00:30]} Rc7 18. Rxc7 Qc8 {[%emt 0:01:00]} *